Workbook

Sheet 25-404-BOQR1
A1: ITEM NO | E1: UNIT | F1: QUANTITY | G1: RATE | H1: AMOUNT
C3: BILL OF PROVISIONAL QUANTITIES
C5: THE RENOVATIONS AND CONSTRUCTION OF THE NATIONAL SEISMOLOGY CENTRE INCLUDING ALL BUILDING WORKS, EXTERNAL WORKS AND SPECIALIST SERVICE WORKS
C7: NATIONAL SEISMOLOGY CENTRE, 280 PRETORIA STREET, SILVERTON
C9: REVISION 1
C11: Prepared for:
C13: .
C15: 2026-07-01
C17: General
C19: CONTENTS PAGE
C21: Pricing Instruction
C23: Preliminaries
C25: Preliminaries (Section A)
C27: JBCC Preliminaries (Section B)
C29: Special Preliminaries (Section C)
C31: Sectional summary for Preliminaries
C33: Building Works
C35: Alterations
C37: Earthworks
C39: Concrete, Formwork & Reinforcement
C41: Masonry
C43: Waterproofing
C45: Carpentry & Joinery
C47: Ceilings
C49: Partitions
C51: Access Flooring
C53: Floor Coverings
C55: Ironmongery
C57: Structural steel
C59: Metalwork
C61: Plastering
C63: Tiling
C65: Plumbing and Drainage
C67: Paintwork
C69: Paperhanging
C71: Blinds
C73: Sectional summary for Building Works
C75: Site Works & External Works
C77: Water & Fire Water Reticulation
C79: Sewer Reticulation
C81: Roadworks, Paving, Aprons, etc.
C83: Sectional summary for Site Works & External Works
C85: Provisional Sums
C87: Provisional Sums
C89: Final Summary
C92: BILL OF QUANTITIES
C94: PRICING INSTRUCTIONS
C96: 1. Measuring System
C98: 1.1) The Bills of Quantities have been prepared in accordance with the Standard System of Measuring Building Work (Seventh Edition, 2015), as issued by the Association of South African Quantity Surveyors (ASAQS).
C100: 1.2) All quantities are provisional and subject to re-measurement upon completion of the works.
C102: 1.3) Contractors shall not use the stated quantities for material ordering or procurement without prior confirmation. Any discrepancies between the Bills of Quantities and the construction drawings must be immediately reported to the Quantity Surveyor.
C104: 1.4) Definitions of key terms, such as "Unit," "Quantity," "Rate," "Amount," and "Sum," align with the Standardised Specifications and the relevant project documentation.
C106: 1.5) Short descriptions of payment items are indicative only; full scope details are provided in the drawings and specifications.
C108: 2. General Pricing Notes
C110: 2.1) For the purposes of this Bill of Quantities, the following words shall have the meanings hereby assigned to them: Unit : The unit of measurement for each item of work as defined in the Standardized, Project or Particular Specifications Quantity : The number of units of work for each item Rate : The payment per unit of work at each which the Tenderer tenders to do the work Amount : The quantity of an item multiplied by the tendered rate of the (same) item Sum : An amount tendered for an item, the extent of which is described in the Bill of Quantities, the Specifications or elsewhere, but of which the quantity of work is not measured in units
C112: 2.2) All units of measurements are in metric units. With standard abbreviations used (e.g., mm, m², m³, t). mm = millimetre m = metre km = kilometre m² = square metre ha = hectare m³ = cubic metre m³-km = cubic metre-kilometre No. = number Sum = lump Sum l = litre kW = kilowatt kN = kilonewton kg = kilogram kPa = kilopascal t = tonnne (1000kg) % = percent MN = meganewton MN-m = meganewton-metre MPa = megapascal PC Sum = Prime Cost Sum (Cost of material supplied excluding vat, profit and labour, but including transport and delivery costs) Prov Sum = Provisional Sum CAND = Number of candidates Month = Month MEET = Number of meetings
C114: 2.3) The short descriptions of the items of payment given in the bill of quantities are only for the purposes of identifying the items. Detail regarding the extent of the work entailed under each item is provided in the Scope.
C116: 2.4) Unless otherwise stated, items are measured net in accordance with the drawings and no allowance is made for waste.
C118: 2.5) The prices and rates to be inserted in the Bills of Quantities are to be the full inclusive for the work described under the several items. Such prices and rates shall cover all costs and expenses that may be required in and for the execution of the work described, and shall cover the cost of all general risks, liabilities and obligations set forth or implied in the documents on which the tender is based, as well as overhead charges and profit. Reasonable prices shall be inserted as these will be used as a basis for assessment of payment for additional work that may have to be carried out. This is a fixed price contract with no provisions to be made for contract and price escalation.
C120: 2.6) A price or rate is to be entered against each item in the Bills of Quantities, whether the quantities are stated or not. An item against which no price is entered will be considered to be covered by the other prices or rates in the Bills of Quantities.
C122: 2.7) Except where rates only are required, insert all amounts to be included in the total tendered price in the “amount” column and show the corresponding total tendered price.
C124: 2.8) It will be assumed that prices included in the Bills of Quantities are based on Acts, Ordinances, Regulations, By laws, International Standards and National Standards that were published 28 days before the closing date for tenders. (Refer to www.stanza.org.za or www.iso.org for information on standards).
C126: 2.9) The quantities contained in the Bill of Quantities may not be final and do not necessarily represent the actual amount of work to be done. The Bills of Quantities is not intended for the ordering of materials. Any ordering of materials, based on the Bills of Quantities, is at the Contractor’s risk.
C128: 2.10) The quantities of work as measured and accepted and certified for payment in accordance with the conditions of contract, and not the quantities stated in the Bill of Quantities, will be used to determine payments to the Contractor. The validity of the Contract shall in no way be affected by difference between the quantities in the Bill of Quantities and the quantities certified for payment. The Ordering of materials is not to be based on the Bill of Quantities, but only on information issued for construction purposes.
C130: 2.11) The contract sum must include for Value Added Tax (VAT). All rates, provisional sums, etc. in the Bills of Quantities are net (exclusive of VAT) with VAT calculated and added to the total value thereof in the Final Summary.
C132: 2.12) This is a Fixed Rate Contract with re-measurable quantities and no escalation will be considered
C134: 2.13) The descriptions provided trades must be read in conjunction with the Architect’s and Engineer’s Drawings, Details, Schedules and Specifications and the tenderer must price accordingly.
C136: 3. Structure and locations of Bills of Quantities
C138: Section no. 1: Preliminaries Section no. 2: Building works Section no. 3: Site works & external works Section no. 4: Provisional sums Final summary - to be carried to form of offer and acceptance
C140: 4. Details of the Agreement
C142: 4.1) The agreement is based onThe JBCC Principal Building Agreement (Edition 6.2 - May 2018). The additions, deletions and alterations to the JBCC Principal Building Agreement are stated in the contract Data.
C144: 4.2) The ASAQS Preliminaries published by the Association of South African Quantity Surveyors , August 2010, are forming part of the overall Preliminaries Bill of Quantities and the preliminaries specific variables are stated within the Preliminaries Bills of Quantities.
C146: 4.3) Where any item is not relevant to this specific contract, such item is marked N/A (signifying “not applicable”)
C148: 5. General Preambles for Trades (2017)
C150: 5.1) Tenderers are referred to the General Preambles for Trades (2017 Edition as recommended and published by the Association of South African Quantity Surveyors) and to the Supplementary Preambles to all Trades. The Tenderer must study the General Preambles and the Supplementary Preambles to all Trades before pricing this document and the tender sum shall cover all costs and charges that may be considered necessary by the tenderer for the carrying out and observance of the provisions of the General Preambles and the Supplementary Preambles to all Trades.
C152: 5.2) Descriptions in the Bills of Quantities are abbreviated and comply generally with those in the “General Preambles for Trades 2017”.
C154: 6. Drawings and Scope of Work
C156: 6.1) The drawings referenced in the Scope of Work for these Bills of Quantities are available for inspection at the Quantity Surveyor’s office during working hours.
C158: 6.2) It is the Tenderer’s responsibility to ensure their tender aligns with the Scope of Work and all referenced drawings.
C160: 6.3) The Tenderer must note that this is a fixed rate contract, and that the Tenderer is not entitled to adjust the rates/prices for escalation.
C162: 7. Tender Submission and Compliance
C164: 7.1) The Tenderer is deemed to have inspected the site and understood the conditions affecting the execution of works.
C166: 7.2) Submission of the tender indicates full acceptance of these Pricing Instructions and the associated contract documents.
C168: 8. Proprietary Names / Trade Names
C170: 8.1) Reference to any particular trademark, name, patent, design, type, specific origin or producer is purely to establish a standard for requirements. Products or articles of an equivalent standard may be substituted, subject to the Principal Agent’s approval.
C172: 9. View site
C174: 9.1) Before submitting the tender, the Contractor shall be deemed to have visited the site and fully satisfied himself as to the nature, extent and execution of the Works, the condition of existing buildings, structures and services, and the value, condition and recoverability of all materials contained in the buildings or portions of buildings to be demolished The Contractor shall be deemed to have allowed for all site conditions, constraints and limitations, including but not limited to access to the site, working hours, security requirements, protection of existing structures and services, restrictions on deliveries, off-loading and movement of materials, availability of storage space on site, and the need for temporary storage, protection and handling of materials The Contractor shall allow for all risks associated with the delivery, off-loading, storage, protection, deterioration, loss or damage of materials and plant on site, whether temporary or permanent, until final completion No claim for any variation of the Contract Sum shall be entertained in respect of the nature, extent or execution of the Works, site conditions, access restrictions, delivery or storage constraints, or in respect of inferior, damaged, lost or deteriorated materials, all of which shall be deemed to have been allowed for in the tender
C176: 10. Additional Instructions
C178: 10.1) Any ambiguities or contradictions in the Bills of Quantities must be resolved with the Quantity Surveyor before tender submission..
C180: 10.2) Prime Cost (PC) Sums and Provisional Sums included must be verified with the Employer for approval before commencement of the respective works.
C182: 11. Live Site Conditions, Noise, Dust and Disturbance Control
C184: 11.1) The Works are to be executed within a live and occupied site
C186: 11.2) The Contractor shall be deemed to have allowed for all constraints, limitations and risks associated with working in an operational environment
C188: 11.3) The Contractor shall plan, programme and execute the Works so as to minimise noise, dust, vibration and general disturbance to occupants, users and ongoing operations. All noisy, dusty or disruptive activities shall be controlled, phased or restricted as directed by the Client or Principal Agent and shall comply with all applicable legislation, local authority by-laws and project-specific requirements
C190: 11.4) The Contractor shall provide all necessary temporary protection, screening, dust barriers, acoustic control measures, signage and housekeeping to maintain a safe, clean and orderly environment at all times
C192: 11.5) Access routes, emergency egress, services and operational areas shall be kept clear and functional at all times. The Contractor shall coordinate all activities with the Client and allow for working outside normal hours where required to reduce disruption
C194: 11.6) Rates shall include for all planning, supervision, protection, phasing, cleaning, compliance and making good arising from live site conditions. No claims shall arise from restrictions, delays or inefficiencies resulting from working in an occupied environment
C196: SECTION NO. 1 BILL NO. 1
C198: PRELIMINARIES
C200: BUILDING AGREEMENT AND PRELIMINARIES
C202: The JBCC Principal Building Agreement (Edition 6.2 - May 2018) prepared by the Joint Building Contracts Committee shall be the applicable building agreement, amended as hereinafter described
C204: The JBCC Principal Building Agreement contract data form an integral part of this agreement
C206: The JBCC General Preliminaries (May 2018) published by the Joint Building Contracts Committee for use with the JBCC Principal Building Agreement (Edition 6.2 - May 2018) shall be deemed to be incorporated in these bills of quantities, amended as hereinafter described
C208: The contractor is deemed to have referred to the above mentioned documents for the full intent and meaning of each clause. In addition the contractor is deemed to have referred to the amendments to the general conditions of contract as well as the specific conditions of contract
C210: The clauses in the abovementioned documents are hereinafter referred to by clause number and heading only
C212: Where any item is not relevant to this agreement such item is marked N/A signifying "not applicable"
C214: Where standard clauses or alternatives are not entirely applicable to this agreement such amendments, modifications, corrections or supplements as will apply are given under each relevant clause heading and such amendments, modifications, corrections or supplements shall take precedence notwithstanding anything to the contrary contained in the abovementioned documents
C216: PREAMBLES FOR TRADES
C218: The General Preambles for Trades 2017 published by the Association of South African Quantity Surveyors shall be deemed to be incorporated in these bills of quantities and no claims arising from brevity of description of items fully described in the said General Preambles will be entertained
C220: Supplementary preambles and/or specifications are incorporated in these bills of quantities to satisfy the requirements of this project. Such supplementary preambles and/or specifications shall take precedence over the provisions of the General Preambles
C222: The contractor's prices for all items throughout these bills of quantities shall take account of and include where applicable for all of the obligations, requirements and specifications given in the General Preambles and in any supplementary preambles and/or specifications
C224: STRUCTURE OF THIS PRELIMINARIES BILL
C226: Section A : A recital of the headings of the individual clauses in the aforementioned JBCC Principal Building Agreement
C228: Section B : A recital of the headings of the individual clauses in the aforementioned JBCC General Preliminaries (refer to JBCC & Tender Document)
C230: Section C : A recital of the headings of the individual special clauses to meet the particular circumstances of the project (refer to Tender Document)
C232: PRICING OF PRELIMINARIES
C234: Option A in the contract data applies for the adjustment of preliminaries, the amounts entered against the relevant items in these preliminaries are to be divided into one or more of the three categories provided namely fixed (F), value related (V) and time related (T)
C236: SECTION A: PRINCIPAL BUILDING AGREEMENT
C238: Interpretation (A1-A7)
A240: 1 | C240: Clause 1.0 - Definitions and interpretation | E240: CONT | F240: 0
C242: Pricing of bills of quantities | E242: CONT | F242: 0
C244: The contractor is to allow opposite each item for all costs in connection therewith. All prices to include, unless otherwise stated, for all materials, fabrication, conveyance and delivery, unloading, storing, unpacking, hoisting, labour, setting, fitting and fixing in position, cutting and waste (except where to be measured in accordance with the standard system of measurement), patterns, models and templates, plant, temporary works, returning of packaging, duties, taxes (other than Value Added Tax), imposts, establishment charges, overheads, profit and all other obligations arising out of this agreement. Value Added Tax (VAT) is to be separately stated on the summary page of these bills of quantities | E244: CONT | F244: 0
C246: Items left unpriced will be deemed to be covered in prices against other items throughout these bills of quantities and no claim for any extras arising out of the contractor's omission to price any item will be entertained | E246: CONT | F246: 0
C248: Prices for all construction equipment, temporary works, services and other items shall include for the supply, maintenance, operating cost and subsequent removal and making good as necessary | E248: CONT | F248: 0
C250: Abbreviated descriptions | E250: CONT | F250: 0
C252: The items in these bills of quantities utilise abbreviated descriptions. It is the intention that the abbreviated descriptions be fully described when read with the applicable measuring system and the relevant preambles and/or specifications. However, should the full intent and meaning of any description not be clear, the contractor shall, before submission of his tender, call for a written directive from the principal agent, failing which it shall be assumed that the contractor has allowed in his pricing for materials and workmanship in terms of international best practice | E252: CONT | F252: 0
C254: Legal status of contractor | E254: CONT | F254: 0
C256: If the contractor constitutes a joint venture, consortium or other unincorporated grouping of two or more persons then: | E256: CONT | F256: 0
C258: 1. These persons are deemed to be jointly and severally liable to the employer for the performance of this agreement | E258: CONT | F258: 0
C260: 2. These persons shall notify the employer of their leader who has assigned authority to bind the contractor and each of these persons | E260: CONT | F260: 0
C262: 3. The contractor shall not alter its composition or legal status without the prior written consent of the employer | E262: CONT | F262: 0
C264: F:............................. V:............................ T:............................ | E264: Item | F264: 0 | H264: =ROUND(F264*G264,2) -> 0.00
A266: 2 | C266: Clause 2.0 - Law, regulations and notices | E266: CONT | F266: 0
C268: F:............................. V:............................ T:............................ | E268: Item | F268: 0 | H268: =ROUND(F268*G268,2) -> 0.00
A270: 3 | C270: Clause 3.0 - Offer and acceptance F:............................. V:............................ T:............................ | E270: Item | F270: 0 | H270: =ROUND(F270*G270,2) -> 0.00
A272: 4 | C272: Clause 4.0 - Cession and assignment F:............................. V:............................ T:............................ | E272: Item | F272: 0 | H272: =ROUND(F272*G272,2) -> 0.00
A274: 5 | C274: Clause 5.0 - Documents | E274: CONT | F274: 0
C276: Value Added Tax | E276: CONT | F276: 0
C278: Provision is made in the summary page of these bills of quantities for the inclusion of Value Added Tax (VAT) | E278: CONT | F278: 0
C280: Priced document as specification Clause 5.4 is amended The principal agent shall decide which portion of the priced document may be used as a specification of materials and goods or methods or the construction programme, if any | E280: CONT | F280: 0
C282: Electronic issue of drawings All drawings for this project will be issued electronically and the contractor shall be deemed to have received such drawings on the date that such drawings have been dispatched electronically [5.6] | E282: CONT | F282: 0
C284: F:............................. V:............................ T:............................ | E284: Item | F284: 0 | H284: =ROUND(F284*G284,2) -> 0.00
A286: 6 | C286: Clause 6.0 - Employer's agents | E286: CONT | F286: 0
C288: Delegated authority The authority of the principal agent to issue contract instructions [17.1] and perform duties for specific aspects of the works may be delegated to agents and will be defined by the principal agent at site handover | E288: CONT | F288: 0
C290: F:............................. V:............................ T:............................ | E290: Item | F290: 0 | H290: =ROUND(F290*G290,2) -> 0.00
A292: 7 | C292: Clause 7.0 - Design responsibility F:............................. V:............................ T:............................ | E292: Item | F292: 0 | H292: =ROUND(F292*G292,2) -> 0.00
C294: Insurances and securities (A8-A11)
A296: 8 | C296: Clause 8.0 - Works risk F:............................. V:............................ T:............................ | E296: Item | F296: 0 | H296: =ROUND(F296*G296,2) -> 0.00
A298: 9 | C298: Clause 9.0 - Indemnities F:............................. V:............................ T:............................ | E298: Item | F298: 0 | H298: =ROUND(F298*G298,2) -> 0.00
A300: 10 | C300: Clause 10.0 - Insurances F:............................. V:............................ T:............................ | E300: Item | F300: 0 | H300: =ROUND(F300*G300,2) -> 0.00
A302: 11 | C302: Clause 11.0 - Securities | E302: CONT | F302: 0
C304: F:............................. V:............................ T:............................ | E304: Item | F304: 0 | H304: =ROUND(F304*G304,2) -> 0.00
C306: Execution (A12 - A17)
A308: 12 | C308: Clause 12.0 - Obligations of the parties | E308: CONT | F308: 0
C310: Refer to the contract data, the Preliminaries document and "Section B : Preliminaries" of this Bill No. 1 with reference to the provisions of clauses 12.1.2 to 12.1.6 and 12.2.18 of the JBCC Principal Building Agreement | E310: CONT | F310: 0
C312: Office accommodation The contractor shall provide and maintain until practical completion office accommodation with tables and chairs for meetings to be held on the site. The contractor shall also provide adequate office space for the CLO and resident engineer. Such offices shall be kept clean and fit for use at all times [12.2.18] | E312: CONT | F312: 0
C314: Notice board The contractor shall erect in a position approved by the principal agent, maintain and remove on practical completion a notice board recommended by the South African Institute of Architects and as approved by the principal agent listing the names and logos of the employer, the contractor and the professional consultants. No subcontractor or supplier notice boards may be erected unless permission is granted by the principal agent for such notice boards to be erected [12.2.18] | E314: CONT | F314: 0
C316: Statutory and other notices | E316: CONT | F316: 0
C318: The contractor shall submit and/or comply with all statutory and other notices that may be required by any local or other authority in order not to cause any delay to the commencement of the works by the contractor. The contractor shall pay all deposits or fees in this regard | E318: CONT | F318: 0
C320: It is, however, specifically recorded that the employer shall be responsible for the timeous approval of building plans by any local or other authorities and the payment of any fees or charges related thereto | E320: CONT | F320: 0
C322: F:............................. V:............................ T:............................ | E322: Item | F322: 1 | H322: =ROUND(F322*G322,2) -> 0.00
A324: 13 | C324: Clause 13.0 - Setting out F:............................. V:............................ T:............................ | E324: Item | F324: 0 | H324: =ROUND(F324*G324,2) -> 0.00
A326: 14 | C326: Clause 14.0 - Nominated subcontractors | E326: CONT | F326: 0
C328: F:............................. V:............................ T:............................ | E328: Item | F328: 0 | H328: =ROUND(F328*G328,2) -> 0.00
A330: 15 | C330: Clause 15.0 - Selected subcontractors | E330: CONT | F330: 0
C332: F:............................. V:............................ T:............................ | E332: Item | F332: 0 | H332: =ROUND(F332*G332,2) -> 0.00
A334: 16 | C334: Clause 16.0 - Direct contractors Attendance on direct contractors In respect of direct contractors the contractor shall: | E334: CONT | F334: 0
C336: 1. Designate an area for the direct contractor to establish a temporary office and workshop and storage of equipment and materials | E336: CONT | F336: 0
C338: 2. Allow the use of personnel welfare facilities, where provided | E338: CONT | F338: 0
C340: 3. Provide water, lighting and single phase electric power to a position within 50m of the place where the direct contract work is to be carried out, other than fuel or power for commissioning of any installation | E340: CONT | F340: 0
C342: 4. Permit the direct contractor to use erected scaffolding, hoisting facilities, etc provided by the contractor, in common with others having the like right, while it remains erected on the site [16.1] | E342: CONT | F342: 0
C344: F:............................. V:............................ T:............................ | E344: Item | F344: 0 | H344: =ROUND(F344*G344,2) -> 0.00
A346: 17 | C346: Clause 17.0 - Contract instructions Site instructions Instructions issued on site are to be recorded in a site instruction book (Numbered triplicate copy book) which is to be supplied and maintained on site by the contractor The contractors shall prepare, maintain and update weekly, an electronic summary of all site instruction issued for approval by the QS & PA | E346: CONT | F346: 0
C348: F:............................. V:............................ T:............................ | E348: Item | F348: 0 | H348: =ROUND(F348*G348,2) -> 0.00
C350: Completion (A18 - A24)
A352: 18 | C352: Clause 18.0 - Interim completion | E352: N/A | F352: 0
A354: 19 | C354: Clause 19.0 - Practical completion F:............................. V:............................ T:............................ | E354: Item | F354: 0 | H354: =ROUND(F354*G354,2) -> 0.00
A356: 20 | C356: Clause 20.0 - Completion in sections | E356: CONT | F356: 0
C358: F:............................. V:............................ T:............................ | E358: Item | F358: 0 | H358: =ROUND(F358*G358,2) -> 0.00
A360: 21 | C360: Clause 21.0 - Defects liability period and final completion | E360: CONT | F360: 0
C362: F:............................. V:............................ T:............................ | E362: Item | F362: 0 | H362: =ROUND(F362*G362,2) -> 0.00
A364: 22 | C364: Clause 22.0 - Latent defects liability period F:............................. V:............................ T:............................ | E364: Item | F364: 0 | H364: =ROUND(F364*G364,2) -> 0.00
A366: 23 | C366: Clause 23.0 - Revision of the date for practical completion Substitution of materials and goods The removal or substitution of any materials and goods which do not conform to the specification or the contract drawings shall not constitute grounds for the extension of the construction period nor for the adjustment of the contract value [17.1.8; 23.1 & 2] | E366: CONT | F366: 0
C368: F:............................. V:............................ T:............................ | E368: Item | F368: 0 | H368: =ROUND(F368*G368,2) -> 0.00
A370: 24 | C370: Clause 24.0 - Penalty for late or non-completion F:............................. V:............................ T:............................ | E370: Item | F370: 0 | H370: =ROUND(F370*G370,2) -> 0.00
C372: Payment (A25 - A27)
A374: 25 | C374: Clause 25.0 - Payment | E374: CONT | F374: 0
C376: Prices submitted Where prices are submitted by the contractor or subcontractor during the progress of the works in respect of contract instructions or in regard to a claim under the terms of this agreement and notwithstanding the fact that such prices may be used in an interim payment certificate, there is to be no presumption of acceptance. Should the principal agent wish to accept any such prices prior to the issue of the certificate of final completion, it shall be in writing | E376: CONT | F376: 0
C378: F:............................. V:............................ T:............................ | E378: Item | F378: 0 | H378: =ROUND(F378*G378,2) -> 0.00
A380: 26 | C380: Clause 26.0 - Adjustment of the contract value and final account | E380: CONT | F380: 0
C382: Fluctuations in costs All fluctuations in costs, with the exception of fluctuations in the rate of Value Added Tax, shall be for the account of the contractor [26.9.5] | E382: CONT | F382: 0
C384: Cost of claims All costs incurred by the contractor in the preparation of claims shall be borne by the contractor. This provision shall not preclude an adjudicator or an arbitrator appointed in terms of this agreement [30.6 & 7] from making a determination on costs | E384: CONT | F384: 0
C386: Claims from subcontractors The contractor shall review, assess and adjudicate any claims received by him from any subcontractor and thereafter submit same to the principal agent with a recommendation in order to assist the principal agent in adjudicating the claim [26.6] | E386: CONT | F386: 0
C388: F:............................. V:............................ T:............................ | E388: Item | F388: 0 | H388: =ROUND(F388*G388,2) -> 0.00
A390: 27 | C390: Clause 27.0 - Recovery of expense and/or loss F:............................. V:............................ T:............................ | E390: Item | F390: 0 | H390: =ROUND(F390*G390,2) -> 0.00
C392: Suspension and termination (A28 - A29)
A394: 28 | C394: Clause 28.0 - Suspension by the contractor | E394: CONT | F394: 0
C396: F:............................. V:............................ T:............................ | E396: Item | F396: 0 | H396: =ROUND(F396*G396,2) -> 0.00
A398: 29 | C398: Clause 29.0 - Termination | E398: CONT | F398: 0
C400: F:............................. V:............................ T:............................ | E400: Item | F400: 0 | H400: =ROUND(F400*G400,2) -> 0.00
... 1079 more rows

Sheet Final Summary
B2: FINAL SUMMARY
A4: Section | C4: Page | E4: Amount
A5: No | C5: No
A7: 1 | B7: Preliminaries | C7: 37 | D7: R | E7: =SUM('25-404-BOQR1'!G629:G635) -> 0.00
A9: 2 | B9: Building Works | C9: 131 | D9: R | E9: =SUM('25-404-BOQR1'!H640:H2230) -> 385,000.00
A11: 3 | B11: Site Works & External Works | C11: 145 | D11: R | E11: =SUM('25-404-BOQR1'!H2270:H2484) -> 167,500.00
A13: 4 | B13: Provisional Sums | C13: 149 | D13: R | E13: =SUM('25-404-BOQR1'!H2493:H2563) -> 1,239,000.00
B15: Sub-Total | D15: R | E15: =SUM(E7:E13) -> 1,791,500.00
A17: 5 | B17: Services (Electrical) - Amount brought forward from Electrical BOQ | D17: R
B19: Sub-Total | D19: R | E19: =SUM(E15:E18) -> 1,791,500.00
A21: 6 | B21: Services (Mechanical) - Amount brought forward from Electrical BOQ | D21: R
B23: Sub-Total | D23: R | E23: =SUM(E19:E22) -> 1,791,500.00
A25: 7 | B25: Construction Contingency | D25: R | E25: 500,000.00
B27: SUB- TOTAL EXCLUDING VAT | D27: R | E27: =SUM(E23:E25) -> 2,291,500.00
B29: ADD: VALUE ADDED TAX @15% | D29: R | E29: =E27*15% -> 343,725.00
B58: Total inc VAT Carried to Form of Offer and Acceptance | D58: R | E58: =SUM(E26:E29) -> 2,635,225.00
